﻿Department family,Entity,Date,Expense type,Expense area,Supplier,Transaction number,Amount,Description,Supplier Postcode
Families & Specialist Services,Radiology,29/07/2022,Contractual Clinical Services,Rad General,4 Ways Healthcare Ltd,4WHC/03231250,"27,559.45 ",Outsourcied teleradiology reporting,HP2 7BF
Pmu,Pmu,01/08/2022,Drugs,Pmu,Aah Pharmaceuticals Ltd,64593389X,"30,193.66 ",Pharmaceutical purchase,CV2 2ZG
Pmu,Pmu,01/08/2022,Drugs,Pmu,Aah Pharmaceuticals Ltd,65436095M,"25,345.44 ",Pharmaceutical purchase,CV2 2ZG
Pmu,Pmu,29/07/2022,Drugs,Pmu,Active Pharma Supplies Ltd,4308,"50,400.00 ",Pharmaceutical purchase,PR25 2ZJ
Balance Sheet,L2 Current Assets,08/07/2022,Finished Processed Goods,Stock & Work In Progress,Alliance Healthcare Distribution Ltd,F26755044,"54,535.68 ",Pharmaceutical purchase,KT9 1SN
Pmu,Pmu,08/07/2022,Drugs,Pmu,Alliance Healthcare Distribution Ltd,F26854503,"27,048.00 ",Pharmaceutical purchase,KT9 1SN
Balance Sheet,L2 Current Assets,22/07/2022,Finished Processed Goods,Stock & Work In Progress,Alliance Healthcare Distribution Ltd,F26G54517,"41,316.06 ",Pharmaceutical purchase,KT9 1SN
Balance Sheet,L2 Current Assets,29/07/2022,Finished Processed Goods,Stock & Work In Progress,Alliance Healthcare Distribution Ltd,F26S55463,"41,981.76 ",Pharmaceutical purchase,KT9 1SN
Balance Sheet,L2 Current Assets,22/07/2022,Finished Processed Goods,Stock & Work In Progress,Alloga Uk Ltd,SIN103508022,"28,309.80 ",Pharmaceutical purchase,DE55 2FH
Corporate Services,Service Performance,15/07/2022,Rent,Properties,Assura Medical Centres Ltd,LINV48735,"29,100.00 ",Rent Todmorden Health Centre 24 / 06 / 2022 to 28 / 09 / 2022,WA4 6HL
CHS Estates,L2 Estates,01/07/2022,Contract : Other External,Medical Physics,B Braun Sterilog (Yorkshire) Ltd,328746697,"134,015.05 ",DECONTAMINATION SERVICES FOR SURGICAL & PODIATRY,S35 2PW
CHS Estates,L2 Estates,22/07/2022,Contract : Other External,Medical Physics,B Braun Sterilog (Yorkshire) Ltd,328746719,"160,216.58 ",DECONTAMINATION SERVICES FOR SURGICAL & PODIATRY,S35 2PW
Balance Sheet,L2 Current Assets,01/07/2022,Finished Processed Goods,Stock & Work In Progress,Bayer Plc,824C421934,"29,654.83 ",Pharmaceutical purchase,RG2 6AD
Balance Sheet,L2 Current Assets,01/07/2022,Finished Processed Goods,Stock & Work In Progress,Bayer Plc,824C421935,"27,373.68 ",Pharmaceutical purchase,RG2 6AD
Balance Sheet,L2 Current Assets,22/07/2022,Finished Processed Goods,Stock & Work In Progress,Bayer Plc,824C423522,"114,057.00 ",Pharmaceutical purchase,RG2 6AD
Balance Sheet,L2 Current Assets,08/07/2022,Finished Processed Goods,Stock & Work In Progress,Bayer Plc,824C423523,"27,373.68 ",Pharmaceutical purchase,RG2 6AD
Balance Sheet,L2 Current Assets,22/07/2022,Finished Processed Goods,Stock & Work In Progress,Bayer Plc,824C425772,"27,373.68 ",Pharmaceutical purchase,RG2 6AD
Balance Sheet,L2 Current Assets,22/07/2022,Finished Processed Goods,Stock & Work In Progress,Bayer Plc,824C426721,"27,373.68 ",Pharmaceutical purchase,RG2 6AD
Balance Sheet,L2 Current Assets,22/07/2022,Finished Processed Goods,Stock & Work In Progress,Bayer Plc,824C426922,"114,057.00 ",Pharmaceutical purchase,RG2 6AD
Balance Sheet,L2 Current Assets,29/07/2022,Finished Processed Goods,Stock & Work In Progress,Bayer Plc,824C428217,"27,373.68 ",Pharmaceutical purchase,RG2 6AD
Families & Specialist Services,Pathology,29/07/2022,Laboratory Test Kits,Microbiology,Becton Dickinson UK Ltd,220056528,"33,093.81 ",Managed Service Contract (non-CoVID),RG41 5TS
Families & Specialist Services,Pathology,29/07/2022,Laboratory Test Kits,Microbiology,Becton Dickinson UK Ltd,220063283,"29,311.48 ",Managed Service Contract (non-CoVID),RG41 5TS
CHS Estates,L2 Estates,08/07/2022,Rent,Estates Properties,BW SIPP Trustees Ltd,INV-0909,"1,250.00",roof repairs for Elland (loan store and THIS) ,HX2 6BW
CHS Balance Sheet,Long Term Creditors,08/07/2022,Lease Liabilities under IFRS 16 > 1 year,Finance Leases,BW SIPP Trustees Ltd,INV-0909,"34,625.00",rent for Elland site (Loan store and THIS),HX2 6BW
Surgery & Anaesthetics,Surgical Divisional Support,15/07/2022,Healthcare From Commercial Sector,Elective Recovery,Calderdale And Huddersfield Orthopaedic Partnership Llp,INV-0037,"75,000.00 ",Provision of Orthopaedic and/or Specialty Healthcare Services,LS8 2JH
Corporate Services,Service Performance,21/07/2022,Contract : Other External,Pfi,Calderdale Hospital Spc Ltd,3662,"3,047,637.68 ",PFI contract monthly payment,M20 2YY
Corporate Services,Service Performance,29/07/2022,Rates,Properties,Calderdale Metropolitan Borough Council,25202291017616,"73,387.00 ",Business rates for Calderdale Royal Hospital,HX1 1TP
Corporate Services,Corporate Services,05/07/2022,Professional Fees,Corporate Services,Care Quality Commission,43126754,"30,805.40 ",Annual Fee in 10 installments,WF3 1WE
Balance Sheet,Fixed Assets,22/07/2022,Additions - Assets Under Construction,Capital (His),Cerner Ltd,102054168,"12,560.00",CareAware iBus for,W2 1AF
Balance Sheet,Fixed Assets,22/07/2022,Additions - Assets Under Construction,Capital (His),Cerner Ltd,102054168,"3,156.00",CareAware iBus for,W2 1AF
Balance Sheet,Fixed Assets,22/07/2022,Additions - Assets Under Construction,Capital (His),Cerner Ltd,102054168,"22,880.00",Professional Service - CHFT Cobas IT and Conworx PoCelerator PoC Testing Integration - Professional Services fixed charge £22 880.00,W2 1AF
Balance Sheet,Fixed Assets,22/07/2022,Additions - Assets Under Construction,Capital (His),Cerner Ltd,102054168,"28,756.00",License software support CHFT Cobas IT and Conworx PoCelerator PoC Testing Integration -  - one time charge £28 756.00,W2 1AF
Health Informatics,Modernisation Programme,15/07/2022,Computer Software / License  Fees,Modernisation Programme,Cerner Ltd,102069257,"38,400.00 ",Cerner CCN053 Nuance Dragon Medical Once Speech recognition. monthly recurring charge ,W2 1AF
Health Informatics,Modernisation Programme,08/07/2022,Computer Software / License  Fees,Modernisation Programme,Cerner Ltd,102080545,"63,112.80 ",Cerner - Table 12: RHO Recurring Charges. Monthly  commencing from the Effective Date and continuing until the end of the Term ,W2 1AF
Health Informatics,Modernisation Programme,08/07/2022,Computer Software / License  Fees,Modernisation Programme,Cerner Ltd,102080565,"52,859.98 ",Cerner CCN007 - Single Sign on - annual maintenance ,W2 1AF
Health Informatics,Modernisation Programme,15/07/2022,Computer Software / License  Fees,Modernisation Programme,Cerner Ltd,102080642,"38,400.00 ",Cerner CCN053 Nuance Dragon Medical Once Speech recognition. monthly recurring charge ,W2 1AF
Balance Sheet,Fixed Assets,15/07/2022,Additions - Assets Under Construction,Capital (His),Cisilion Ltd,INVUK0014567,"74,866.24 ",Estimate Reference ESTUK0000740). Hardware - Core Upgrade ,KT22 9UT
Health Informatics,Service Delivery,22/07/2022,Computer Hardware Purchases,Service Delivery,Cisilion Ltd,INVUK0014642,"10,050.40",Network Essentials Catalyst 9300 24-port data only  Network Essentials,KT22 9UT
Health Informatics,Service Delivery,22/07/2022,Computer Hardware Purchases,Service Delivery,Cisilion Ltd,INVUK0014642,259.15, Cable 50CM Type 1 Stacking Cable,KT22 9UT
Health Informatics,Service Delivery,22/07/2022,Computer Hardware Purchases,Service Delivery,Cisilion Ltd,INVUK0014642,246.20,Catalyst Stack Power Cable 30 CM,KT22 9UT
Health Informatics,Service Delivery,22/07/2022,Computer Hardware Purchases,Service Delivery,Cisilion Ltd,INVUK0014642,"1,437.15", C9300 DNA Essentials  24-Port  3 Year Term License,KT22 9UT
Health Informatics,Service Delivery,22/07/2022,Computer Hardware Purchases,Service Delivery,Cisilion Ltd,INVUK0014642,"5,406.85", Catalyst 9300 8 x 10GE Network Module,KT22 9UT
Health Informatics,Service Delivery,22/07/2022,Computer Hardware Purchases,Service Delivery,Cisilion Ltd,INVUK0014642,"8,964.80",Cisco GLC-SX-MMD SFP (mini-GBIC) - 1 x LC/PC Duplex 1000Base-SX Network,KT22 9UT
Health Informatics,Service Delivery,22/07/2022,Computer Hardware Purchases,Service Delivery,Cisilion Ltd,INVUK0014642,"1,590.00",Cisco Rack Mount for Network Switch,KT22 9UT
Health Informatics,Service Delivery,22/07/2022,Computer Hardware Purchases,Service Delivery,Cisilion Ltd,INVUK0014642,74.00,LC-ST Multimode OM4 Duplex Fibre Lead Aqua 3m,KT22 9UT
Health Informatics,Service Delivery,22/07/2022,Computer Hardware Purchases,Service Delivery,Cisilion Ltd,INVUK0014642,75.00,LC-ST Multimode OM4 Duplex Fibre Lead Aqua 1m,KT22 9UT
Health Informatics,Service Delivery,22/07/2022,Computer Hardware Purchases,Service Delivery,Cisilion Ltd,INVUK0014642,33.00,LC-SC Multimode OM4 Duplex Fibre Lead Aqua 3m,KT22 9UT
Health Informatics,Service Delivery,22/07/2022,Computer Hardware Purchases,Service Delivery,Cisilion Ltd,INVUK0014642,26.00,LC-SC Multimode OM4 Duplex Fibre Lead Aqua 1m,KT22 9UT
Health Informatics,Corporate And Operations,01/08/2022,Computer Maintenance,It Support,Clinisys Solutions Ltd,INV34212200022,"115,119.97 ",M590 Clinisys ICE Annual Support and Maintenance Renewal 31/10/21 - 30/10/22,KT16 9AU
Balance Sheet,L2 Current Assets,08/07/2022,Finished Processed Goods,Stock & Work In Progress,Csl Behring Uk Ltd,994047088,"38,862.00 ",Pharmaceutical purchase,RH16 1AH
Balance Sheet,L2 Current Assets,29/07/2022,Finished Processed Goods,Stock & Work In Progress,Csl Behring Uk Ltd,994047558,"37,338.00 ",Pharmaceutical purchase,RH16 1AH
CHS Estates,L2 Estates,01/07/2022,Computer Software / License  Fees,Management Estates,DH OpCo UK Ltd,5970001584,"29,704.64 ",Provision & support of the i.Labs system. Year 2: 01/01/2022 – 31/12/ 2022 payment terms: quarterly in advance As per the terms and conditions of the NHS SBS Framework ,GU11 1PZ
CHS Estates,L2 Estates,22/07/2022,Electricity,Estates Operations,EDF Energy Customers Ltd,000012659094,"244,502.81 ",Mains Electric for Calderdale Royal Hospital from April 2021 to March 2022,W1T 4EZ
Health Informatics,Corporate And Operations,29/07/2022,Computer Software / License  Fees,It Support,European Electronique Ltd,0001587502,"46,529.00 ",VAT on CHFT Barracuda order funded through Hewlett Packard European Electronic,OX29 4TT
Corporate Services,Corporate Services,01/07/2022,Books Journals and Subscriptions,Corporate Services,Foundation Trust Network,0000006621,"29,745.00 ",NHS PROVIDERS MEMBERSHIP FEE - 01.04.2022-31.03.2023,SW1H 9JJ
Balance Sheet,Fixed Assets,01/07/2022,Additions - Assets Under Construction,Capital (Estates),G.E. Griffiths Ltd,10864,"38,390.40 ",supply  delivery and installation of a flue dilation system based on 3 x120kw condensing boilers and one 50kw condensing water heater. (G) (S) Broadstreet,HD8 9LA
Corporate Services,Corporate Services,22/07/2022,Advertising and Staff Recruitment,Corporate Services,Gatenbysanderson Ltd,62537,"36,401.36 ",SPECIALIST AGENCY/SUPPLIER SUPPORT FRO THE RECRUITMENT OF A CHAIR AND 2 X NON-EXECUTIVE DIRECTORS AT CHFT,LS1 2HL
Balance Sheet,Fixed Assets,22/07/2022,Additions - Assets Under Construction,Capital (Medicine & Elderly),Ge Medical Systems Ltd,694814,"32,071.55 ",ARCU Equipment  (Med Specialities) Level 3 Network £5 236.00 nettCSCS V3 All in One New System £21 409.29 nett,HP8 4SP
Health Informatics,Corporate And Operations,01/07/2022,Computer Network Costs,It Support,Hewlett-Packard International Bank Plc,400901316365,"94,269.02 ",M480 Commvault renewal with Coolspirit - finance agreement Year 32022-2023,371607
Medical Division,Emergency Medicine,22/07/2022,B5 Agency Nursing,A&E Nursing,Icare24 Ltd,26093A,"4,488.74 ",B5 Agency Nursing,B16 8QG
Corporate Services,Central Operations Team CORP,22/07/2022,B5 Agency Nursing,Central Operations Team CORP,Icare24 Ltd,26093A,"4,009.26 ",B5 Agency Nursing,B16 8QG
Medical Division,Medical Specialities,22/07/2022,B5 Agency Nursing,Gastroenterology,Icare24 Ltd,26093A,771.82 ,B5 Agency Nursing,B16 8QG
Medical Division,Acute Medical,22/07/2022,B5 Agency Nursing,General Medicine,Icare24 Ltd,26093A,"4,222.96 ",B5 Agency Nursing,B16 8QG
Surgery & Anaesthetics,General Surgery,22/07/2022,B5 Agency Nursing,General Surgery,Icare24 Ltd,26093A,600.88 ,B5 Agency Nursing,B16 8QG
Medical Division,Acute Medical,22/07/2022,B5 Agency Nursing,Geriatric Medicine,Icare24 Ltd,26093A,"5,714.11 ",B5 Agency Nursing,B16 8QG
Medical Division,Medical Specialities,22/07/2022,B5 Agency Nursing,Respiratory,Icare24 Ltd,26093A,"2,336.85 ",B5 Agency Nursing,B16 8QG
Surgery & Anaesthetics,Orthopaedics,22/07/2022,B5 Agency Nursing,Trauma & Orthopaedics,Icare24 Ltd,26093A,567.41 ,B5 Agency Nursing,B16 8QG
Balance Sheet,Fixed Assets,08/07/2022,Additions - Assets Under Construction,Capital (Estates),Integrated Health Projects,22040033,"25,487.65 ",HRI - Emergency Department DEVELOPMENT - FIRE SUPPRESSION DESIGN ONLY FEE AS PER QUOTE,WD24 4WW
Families & Specialist Services,Outpatients & Records Services,22/07/2022,Computer Software / License  Fees,Outpatients Dept,Intouch With Health Ltd,INVITH20070,"35,422.08 ", Intouch with Health Support to run for 12 months from 9 Feb 2022 to 8 Feb 2023 ,GL7 6ET
Balance Sheet,Fixed Assets,15/07/2022,Additions - Assets Under Construction,Capital (Fss),Johnson And Johnson Medical Ltd,22028612-RI10656,"25,498.16 ",GMS40A- ALPHASCOPE,RG40 3EW
Balance Sheet,Fixed Assets,01/07/2022,Additions - Assets Under Construction,Capital (Fss),K2 Medical Systems Ltd,8762,"27,120.00 ",Interface for contextual link from K2ms to the trust pathology system ICE  including professional services. ,PL6 5WR
Balance Sheet,Fixed Assets,01/07/2022,Additions - Assets Under Construction,Capital (Estates),Kingfisher UPVC Windows and Doors Ltd,J0033884,"80,411.11 ",HRI - SUB-BASEMENT FLOOR - SUPPLY AND INSTALLATION OF ALUMINIUM WINDOWS  DOORS AND CURTAIN WALLING TO REPLACE EXISTING ROTTEN WOODEN FRAMES AS PER QUOTE ,BD11 1NQ
Estates & Facilities,Estates,01/07/2022,Rates,Estates Operations,Kirklees Council,969286425_2022,"43,093.00 ","business rates for Huddersfield Royal Infirmary invoice 969286425_2022	",HD1 2NF
Families & Specialist Services,Pharmacy,01/07/2022,Drugs,Pharm Gen,L Rowland & Company (Retail) Ltd,1800000560,"744,858.59 ",Medicines spend for outpatient Pharmacy,WA7 3DJ
Families & Specialist Services,Pharmacy,01/07/2022,Drugs,Pharm Gen,L Rowland & Company (Retail) Ltd,1800000560,"92,109.00 ",Dispensing fee for outpatient Pharmacy,WA7 3DJ
Families & Specialist Services,Pharmacy,15/07/2022,Healthcare From Commercial Sector,Pharm Gen,L Rowland & Company (Retail) Ltd,1800000689,"95,044.67",Dispensing fee for outpatient Pharmacy,WA7 3DJ
Families & Specialist Services,Pharmacy,15/07/2022,Healthcare From Commercial Sector,Pharm Gen,L Rowland & Company (Retail) Ltd,1800000689,"803,747.56 ",Medicines spend for outpatient Pharmacy,WA7 3DJ
Balance Sheet,L2 Current Assets,22/07/2022,Other Debtors < One Year,Other Debtors,Laerdal Medical Ltd,2022/UK08961,"30,108.20 ",Sim Baby Bundle as per quote NHSSC QUOTE 11588 ,BR6 0HX
Balance Sheet,Fixed Assets,15/07/2022,Additions - Assets Under Construction,CAPITAL (Reconfig HRI),Lend Lease Consulting (Emea) Ltd,14100018622,"63,898.56 ",SW-2023-22 - HRI - ED - LENDLEASE FEES FOR PROJECT MANAGING THE ED DEVELOPMENT AND DEMOLITION FOR THE PERIOD 4/02/22 - 15/04/22 AS PER YOUR QUOTE DATED 10/05/22,HA2 0EE
Corporate Services,Finance,15/07/2022,Computer Software / License  Fees,Finance,Logex Healthcare Analytics Ltd,INV-PRUK-000058,"36,165.60 ",LOGEX COSTING SOFTWARE SUBSCRIPTION AND MAINTENANCE  INCLUDING CONSULTING SUPPORT AND SERVICES AS IN THE SERVICE LEVEL AGREEMENT Contract date: 1/7/2022 to 30/6/2023,EC1V 8TN
Families & Specialist Services,Radiology,22/07/2022,Med Surg Eqpt Hire,Ct,Medispace B.V.,20220248,"30,025.92 ",Rental of a CM050 CT scan box with Canon Prime 160 slice CT scanner plus 2 radiographers to run the service 8am-20.00pm 7 days per week,2712 PJ  The Netherlands
Families & Specialist Services,Radiology,22/07/2022,Med Surg Eqpt Hire,Ct,Medispace B.V.,20220270,"45,038.88 ",Rental of a CM050 CT scan box with Canon Prime 160 slice CT scanner plus 2 radiographers to run the service 8am-20.00pm 7 days per week,2712 PJ  The Netherlands
Families & Specialist Services,Radiology,22/07/2022,Med Surg Eqpt Hire,Ct,Medispace B.V.,20220294,"30,025.92 ",Rental of a CM050 CT scan box with Canon Prime 160 slice CT scanner plus 2 radiographers to run the service 8am-20.00pm 7 days per week,2712 PJ  The Netherlands
Families & Specialist Services,Radiology,22/07/2022,Med Surg Eqpt Hire,Ct,Medispace B.V.,20220301,"30,025.92 ",Rental of a CM050 CT scan box with Canon Prime 160 slice CT scanner plus 2 radiographers to run the service 8am-20.00pm 7 days per week,2712 PJ  The Netherlands
Families & Specialist Services,Radiology,22/07/2022,Med Surg Eqpt Hire,Ct,Medispace B.V.,20220320,"45,038.88 ",Rental of a CM050 CT scan box with Canon Prime 160 slice CT scanner plus 2 radiographers to run the service 8am-20.00pm 7 days per week,2712 PJ  The Netherlands
Families & Specialist Services,Radiology,22/07/2022,Med Surg Eqpt Hire,Ct,Medispace B.V.,20220321,"30,025.92 ",Rental of a CM050 CT scan box with Canon Prime 160 slice CT scanner plus 2 radiographers to run the service 8am-20.00pm 7 days per week,2712 PJ  The Netherlands
Medical Division,Medical Specialities,22/07/2022,Pacemakers,Cardiology,Medtronic Ltd,1205046956,"39,993.84 ",W3DR01 Azure Pacemaker system,WD18 8WW
Families & Specialist Services,Pathology,15/07/2022,Blood Products,Blood Sciences,NHS Blood And Transplant,7006184,"85,109.73 ",MONTHLY CONTRACT CHARGE BLOOD & COMPONENTS,LS15 7TW
Families & Specialist Services,Pathology,15/07/2022,Blood Products,Blood Sciences,NHS Blood And Transplant,7006185,"32,812.05 ",MONTHLY CONTRACT CHARGE BLOOD & COMPONENTS,LS15 7TW
Corporate Services,Quality,15/07/2022,Clinical Negligence,Quality,NHS Resolution,SICX409316,"791,186.30 ",Clinical Negligence provision,SW1W 9SZ
Families & Specialist Services,Womens,15/07/2022,Clinical Negligence,Womens Management,NHS Resolution,SICX409316,"857,768.00 ",Clinical Negligence provision,SW1W 9SZ
Corporate Services,Quality,15/07/2022,Insurance Costs,Quality,NHS Resolution,SICX409316,"20,850.40 ",Clinical Negligence provision,SW1W 9SZ
CHS Balance Sheet,Current Liabilities,01/07/2022,Non- NHS  Trade Creditors < One Year,Other Creditors,NHS Supply Chain,1123050602,"256,569.24 ",Goods delivered week ending 10/06/2022,DE55 4QJ
CHS Balance Sheet,Current Liabilities,01/07/2022,Non- NHS  Trade Creditors < One Year,Other Creditors,NHS Supply Chain,1123058176,"298,640.88 ",Goods delivered week ending 17/06/2022,DE55 4QJ
CHS Balance Sheet,Current Liabilities,08/07/2022,Non- NHS  Trade Creditors < One Year,Other Creditors,NHS Supply Chain,1123060070,"259,947.23 ",Goods delivered week ending 24/06/2022,DE55 4QJ
CHS Balance Sheet,Current Liabilities,15/07/2022,Non- NHS  Trade Creditors < One Year,Other Creditors,NHS Supply Chain,1123065976,"490,433.63 ",Goods delivered week ending 01/07/2022,DE55 4QJ
CHS Estates,L2 Estates,01/07/2022,Med Surg Eqpt Mtce Contracts,Maintenance & Leases,NHS Supply Chain - Maintenance,2123001323,"166,019.48 ",Year 3 of 5 (22/06/2022 - 21/06/2023) Maintenance of 21 ultrasound assets.Serial numbers as per quote.Payment terms - annual in advance. ,DE55 4QJ
CHS Estates,L2 Estates,08/07/2022,Med Surg Eqpt Mtce Contracts,Management Estates,NHS Supply Chain - Maintenance,2123001575,"43,091.06 ",(M332) Year 3 of 3 - Maintenance for Computerised and Digital Radiography Readers (CR & DR) at CRH & HRIAgreement commencing 1st July 2022 - 30th June 2023,DE55 4QJ
CHS Estates,L2 Estates,08/07/2022,Med Surg Eqpt Mtce Contracts,Management Estates,NHS Supply Chain - Maintenance,2123001576,"44,101.40 ",2 of 5 year Comprehensive Maintenance for Draeger Primus IE & Breathing Systems situated at CRH & HRIAgreement Commencing - 1st July 2022 - 30/06/2023,DE55 4QJ
CHS Estates,L2 Estates,01/07/2022,Med Surg Eqpt Mtce Contracts,Management Estates,NHS Supply Chain - Maintenance,2123001757,"40,341.05 ",2 of 2 Year TOP Maintenance cover of Artis Zee Floor Mounted  including detector  at CRH. Agreement Commencing - 4th July 2022 - 3rd July 2023,DE55 4QJ
CHS Estates,L2 Estates,01/07/2022,Med Surg Eqpt Mtce Contracts,Management Estates,NHS Supply Chain - Maintenance,2123001766,"95,908.80 ",2 of 5 Year Performance TOP Maintenance of Symbia Intevo 6 computed Tomography (CT) Scanner Agreement Commencing - 6th July 2022 - 5th July 2023,DE55 4QJ
Corporate Services,Finance,29/07/2022,Computer Software / License  Fees,Finance,Northumbria Healthcare NHS Foundation Trust,7550002181,"18,905.50 ",Financial software system charges,NE27 0QJ
Balance Sheet,L2 Current Assets,01/07/2022,Finished Processed Goods,Stock & Work In Progress,Novartis Pharmaceuticals Uk Ltd,92618230,"42,739.20 ",Pharmaceutical purchase,GU16 7SR
Balance Sheet,L2 Current Assets,08/07/2022,Finished Processed Goods,Stock & Work In Progress,Novartis Pharmaceuticals Uk Ltd,92619543,"26,712.00 ",Pharmaceutical purchase,GU16 7SR
Balance Sheet,L2 Current Assets,22/07/2022,Finished Processed Goods,Stock & Work In Progress,Novartis Pharmaceuticals Uk Ltd,92624504,"42,739.20 ",Pharmaceutical purchase,GU16 7SR
Balance Sheet,L2 Current Assets,22/07/2022,Finished Processed Goods,Stock & Work In Progress,Novartis Pharmaceuticals Uk Ltd,92627317,"42,739.20 ",Pharmaceutical purchase,GU16 7SR
Balance Sheet,L2 Current Assets,29/07/2022,Finished Processed Goods,Stock & Work In Progress,Novartis Pharmaceuticals Uk Ltd,92632064,"42,739.20 ",Pharmaceutical purchase,GU16 7SR
Medical Division,Medical Specialities,01/07/2022,Furniture And Fittings,Respiratory,Ocura Healthcare Ltd ta Ocura Healthcare Furniture,1144973,"4,478.60",Ferrara treatment chair upholstered arms  centralbraking  fold out footrest moulded cover on backColour - Dolce C5 Peacock Blue,TN12 6UU
Medical Division,Medical Specialities,01/07/2022,Furniture And Fittings,Respiratory,Ocura Healthcare Ltd ta Ocura Healthcare Furniture,1144973,199.00,SP1 Special ItemSeat with pressure-relievingsprings (4242400) for FerraraChairColour - Dolce C5 Peacock Blue,TN12 6UU
Medical Division,Medical Specialities,01/07/2022,Furniture And Fittings,Respiratory,Ocura Healthcare Ltd ta Ocura Healthcare Furniture,1144973,137.90,BE1285 Premium Dolce C5 vinyl forVerona & Ferrara chair,TN12 6UU
Medical Division,Medical Specialities,01/07/2022,Furniture And Fittings,Respiratory,Ocura Healthcare Ltd ta Ocura Healthcare Furniture,1144973,77.70,Relax pillowColour - Dolce C5 Peacock Blue,TN12 6UU
Medical Division,Medical Specialities,01/07/2022,Furniture And Fittings,Respiratory,Ocura Healthcare Ltd ta Ocura Healthcare Furniture,1144973,170.00,Emergency foot switch for Ferrarachair,TN12 6UU
Medical Division,Medical Specialities,01/07/2022,Furniture And Fittings,Respiratory,Ocura Healthcare Ltd ta Ocura Healthcare Furniture,1144973,"14,792.00",SP1 Special ItemMauro 19102 zero gravity relaxmobile chair with adjustablearms  electricColour - Atlantic Blue,TN12 6UU
Medical Division,Medical Specialities,01/07/2022,Furniture And Fittings,Respiratory,Ocura Healthcare Ltd ta Ocura Healthcare Furniture,1144973,929.60,BE2013 Padded removable armrestcovers (pair)Colour - Atlantic Blue,TN12 6UU
Medical Division,Medical Specialities,01/07/2022,Furniture And Fittings,Respiratory,Ocura Healthcare Ltd ta Ocura Healthcare Furniture,1144973,733.60,BE2021 Pressure Care Maxi Visco SeatCushion  Dark BlueFor the Mauro chair,TN12 6UU
Medical Division,Medical Specialities,01/07/2022,Furniture And Fittings,Respiratory,Ocura Healthcare Ltd ta Ocura Healthcare Furniture,1144973,"3,066.00",BE2030 Tucson bariatric reclining relaxchair  mobileColour - Atlantic Blue,TN12 6UU
Medical Division,Medical Specialities,01/07/2022,Furniture And Fittings,Respiratory,Ocura Healthcare Ltd ta Ocura Healthcare Furniture,1144973,116.20,BE2013 Padded removable armrestcovers (pair)Colour - Atlantic Blue,TN12 6UU
Medical Division,Medical Specialities,01/07/2022,Furniture And Fittings,Respiratory,Ocura Healthcare Ltd ta Ocura Healthcare Furniture,1144973,164.50,BE2031 Pressure care seat cushion  darkblue (for BE2030)For the Tucson bariatric chair,TN12 6UU
Medical Division,Medical Specialities,01/07/2022,Furniture And Fittings,Respiratory,Ocura Healthcare Ltd ta Ocura Healthcare Furniture,1144973,359.10,BE1042 Mobile legrest for bariatric chairColour - Atlantic Blue,TN12 6UU
Surgery & Anaesthetics,Surgical Divisional Support,08/07/2022,Healthcare From Commercial Sector,Independent Sector,Omnes Healthcare Ltd,CALAPR22V2_,"27,878.50 ",Omnes Insouring Outpatient Capacity - ENT,SE22 8EY
Balance Sheet,Fixed Assets,15/07/2022,Additions - Assets Under Construction,Capital (His),Omnicell Ltd,0000008470,"8,000.00",INTERFACES  PAS INTERFACE  RE-ORDER INTERFACE,M44 5GR
Balance Sheet,Fixed Assets,15/07/2022,Additions - Assets Under Construction,Capital (His),Omnicell Ltd,0000008470,"11,155.89",WINDOWS 2016 VMWARE SERVER,M44 5GR
Balance Sheet,Fixed Assets,15/07/2022,Additions - Assets Under Construction,Capital (His),Omnicell Ltd,0000008470,"30,000.00",INTEROPERABILITY  CERNER INTEROPERABILITY EPMA INTERFACE,M44 5GR
Balance Sheet,Fixed Assets,15/07/2022,Additions - Assets Under Construction,Capital (His),Omnicell Ltd,0000008470,180.67,INTEROPERABILITY  CERNER INTEROPERABILITY EPMA INTERFACE,M44 5GR
Balance Sheet,Fixed Assets,15/07/2022,Additions - Assets Under Construction,Capital (His),Omnicell Ltd,0000008470,"30,180.68",OMNICELL XT - HRI MAJORS  OMNICELL THREE CELL XT CABINET + TWO CELL XT AUXILIARY CABINET,M44 5GR
Balance Sheet,Fixed Assets,15/07/2022,Additions - Assets Under Construction,Capital (His),Omnicell Ltd,0000008913,"36,152.41 ",Two Cell XT Cabinet + Two Cell XT Auxiliary Cabinet  Bio ID  Med Label and Receipt Printer  Wired Scanner  Omni Explorer  4 x XT Pullout Drawers plus Microsoft windowns future updates for 10 years  £30 127.01,M44 5GR
CHS Estates,L2 Estates,15/07/2022,Electricity,Estates Operations,Opus Energy Ltd,41793248,"107,261.44 ",Mains electricity for HRI ,"YO8 8PH	"
CHS Estates,L2 Estates,01/07/2022,Electricity,Estates Operations,Opus Energy Ltd,41863294,"98,390.76 ",Mains electricity for HRI ,"YO8 8PH	"
Balance Sheet,L2 Long Term Creditors,01/07/2022,Lease Liabilities under IFRS 16 > 1 year,Finance Leases,Pennine Property Partnership Llp,SI0000018,"227,979.60 ",Acre Mills Outpatient Dept Rent - 25/06/2022 - 24/09/2022,S11 9PD
Balance Sheet,Fixed Assets,08/07/2022,Additions - Assets Under Construction,Capital (Fss),Philips Electronics Uk Ltd,7300389970,"887,998.80 ",MRI scanner Philips 1.5T Ingenia (to be upgraded to Evolution specification as per attached quote). Excluding the Ambient Experience element.,GU2 8XG
Balance Sheet,Fixed Assets,08/07/2022,Additions - Assets Under Construction,Capital (Fss),Philips Electronics Uk Ltd,7300389971,"876,127.20 ",Supply of new Philips MRI scanner (1.5T Ingenia @ £730 106) for CRH as per supplier quotation. To include compressed sense (£90 000) and intellispace portal options (£48546) ,GU2 8XG
Surgery & Anaesthetics,Surgical Divisional Support,22/07/2022,Healthcare From Commercial Sector,Support Services,Pioneer Healthcare Ltd,3567,"43,387.00 ",Insourcing Services,S10 5UB
Surgery & Anaesthetics,Surgical Divisional Support,22/07/2022,Healthcare From Commercial Sector,Support Services,Pioneer Healthcare Ltd,3568,"58,910.00 ",Insourcing Services,S10 5UB
Medical Division,Emergency Medicine,22/07/2022,B5 Agency Nursing,A&E Nursing,Red Group Personnel Ltd,922CALD,10139.36,B5 Agency Nursing,HA3 5AB
Medical Division,Medical Specialities,22/07/2022,B5 Agency Nursing,Cardiology,Red Group Personnel Ltd,922CALD,1907.98,B5 Agency Nursing,HA3 5AB
Corporate Services,Central Operations Team CORP,22/07/2022,B5 Agency Nursing,Central Operations Team CORP,Red Group Personnel Ltd,922CALD,733.55,B5 Agency Nursing,HA3 5AB
Medical Division,Medical Specialities,22/07/2022,B5 Agency Nursing,Gastroenterology,Red Group Personnel Ltd,922CALD,662.08,B5 Agency Nursing,HA3 5AB
Medical Division,Acute Medical,22/07/2022,B5 Agency Nursing,General Medicine,Red Group Personnel Ltd,922CALD,8367.47,B5 Agency Nursing,HA3 5AB
Surgery & Anaesthetics,General Surgery,22/07/2022,B5 Agency Nursing,General Surgery,Red Group Personnel Ltd,922CALD,666.96,B5 Agency Nursing,HA3 5AB
Medical Division,Acute Medical,22/07/2022,B5 Agency Nursing,Geriatric Medicine,Red Group Personnel Ltd,922CALD,1932.78,B5 Agency Nursing,HA3 5AB
Families & Specialist Services,Womens,22/07/2022,B5 Agency Nursing,Gynaecology,Red Group Personnel Ltd,922CALD,733.55,B5 Agency Nursing,HA3 5AB
Medical Division,Integrated Medical Specialities,22/07/2022,B5 Agency Nursing,Ims Stroke / Rehabilitation,Red Group Personnel Ltd,922CALD,3738.19,B5 Agency Nursing,HA3 5AB
Medical Division,Integrated Medical Specialities,22/07/2022,B5 Agency Nursing,Medical Oncology,Red Group Personnel Ltd,922CALD,669.72,B5 Agency Nursing,HA3 5AB
Surgery & Anaesthetics,Operating Services,22/07/2022,B5 Agency Nursing,Operating Services,Red Group Personnel Ltd,922CALD,2253.02,B5 Agency Nursing,HA3 5AB
Medical Division,Medical Specialities,22/07/2022,B5 Agency Nursing,Respiratory,Red Group Personnel Ltd,922CALD,4156.56,B5 Agency Nursing,HA3 5AB
Surgery & Anaesthetics,Orthopaedics,22/07/2022,B5 Agency Nursing,Trauma & Orthopaedics,Red Group Personnel Ltd,922CALD,1156.19,B5 Agency Nursing,HA3 5AB
Medical Division,Emergency Medicine,08/07/2022,B5 Agency Nursing,A&E Nursing,Red Group Personnel Ltd,923CALD,11407.11,B5 Agency Nursing,HA3 5AB
Medical Division,Medical Specialities,08/07/2022,B5 Agency Nursing,Cardiology,Red Group Personnel Ltd,923CALD,946.51,B5 Agency Nursing,HA3 5AB
Corporate Services,Central Operations Team CORP,08/07/2022,B5 Agency Nursing,Central Operations Team CORP,Red Group Personnel Ltd,923CALD,2536.44,B5 Agency Nursing,HA3 5AB
Surgery & Anaesthetics,Head & Neck,08/07/2022,B5 Agency Nursing,Ent,Red Group Personnel Ltd,923CALD,689.98,B5 Agency Nursing,HA3 5AB
Medical Division,Medical Specialities,08/07/2022,B5 Agency Nursing,Gastroenterology,Red Group Personnel Ltd,923CALD,1196.05,B5 Agency Nursing,HA3 5AB
Medical Division,Acute Medical,08/07/2022,B5 Agency Nursing,General Medicine,Red Group Personnel Ltd,923CALD,8705.77,B5 Agency Nursing,HA3 5AB
Surgery & Anaesthetics,General Surgery,08/07/2022,B5 Agency Nursing,General Surgery,Red Group Personnel Ltd,923CALD,666.96,B5 Agency Nursing,HA3 5AB
Medical Division,Acute Medical,08/07/2022,B5 Agency Nursing,Geriatric Medicine,Red Group Personnel Ltd,923CALD,4803.16,B5 Agency Nursing,HA3 5AB
Medical Division,Integrated Medical Specialities,08/07/2022,B5 Agency Nursing,Ims Stroke / Rehabilitation,Red Group Personnel Ltd,923CALD,4139.01,B5 Agency Nursing,HA3 5AB
Surgery & Anaesthetics,Operating Services,08/07/2022,B5 Agency Nursing,Operating Services,Red Group Personnel Ltd,923CALD,3833.06,B5 Agency Nursing,HA3 5AB
Medical Division,Medical Specialities,08/07/2022,B5 Agency Nursing,Respiratory,Red Group Personnel Ltd,923CALD,4021.55,B5 Agency Nursing,HA3 5AB
Surgery & Anaesthetics,Orthopaedics,08/07/2022,B5 Agency Nursing,Trauma & Orthopaedics,Red Group Personnel Ltd,923CALD,666.96,B5 Agency Nursing,HA3 5AB
Medical Division,Emergency Medicine,22/07/2022,B5 Agency Nursing,A&E Nursing,Red Group Personnel Ltd,924CALD,8956.6,B5 Agency Nursing,HA3 5AB
Medical Division,Medical Specialities,22/07/2022,B5 Agency Nursing,Cardiology,Red Group Personnel Ltd,924CALD,598.03,B5 Agency Nursing,HA3 5AB
Corporate Services,Central Operations Team CORP,22/07/2022,B5 Agency Nursing,Central Operations Team CORP,Red Group Personnel Ltd,924CALD,1077.08,B5 Agency Nursing,HA3 5AB
Medical Division,Acute Medical,22/07/2022,B5 Agency Nursing,General Medicine,Red Group Personnel Ltd,924CALD,11948.3,B5 Agency Nursing,HA3 5AB
Medical Division,Acute Medical,22/07/2022,B5 Agency Nursing,Geriatric Medicine,Red Group Personnel Ltd,924CALD,8385.96,B5 Agency Nursing,HA3 5AB
Medical Division,Integrated Medical Specialities,22/07/2022,B5 Agency Nursing,Ims Stroke / Rehabilitation,Red Group Personnel Ltd,924CALD,1861.8,B5 Agency Nursing,HA3 5AB
Medical Division,Integrated Medical Specialities,22/07/2022,B5 Agency Nursing,Medical Oncology,Red Group Personnel Ltd,924CALD,574.44,B5 Agency Nursing,HA3 5AB
Surgery & Anaesthetics,Operating Services,22/07/2022,B5 Agency Nursing,Operating Services,Red Group Personnel Ltd,924CALD,5969.04,B5 Agency Nursing,HA3 5AB
Medical Division,Medical Specialities,22/07/2022,B5 Agency Nursing,Respiratory,Red Group Personnel Ltd,924CALD,8623.49,B5 Agency Nursing,HA3 5AB
Surgery & Anaesthetics,Orthopaedics,22/07/2022,B5 Agency Nursing,Trauma & Orthopaedics,Red Group Personnel Ltd,924CALD,621.97,B5 Agency Nursing,HA3 5AB
Medical Division,Emergency Medicine,29/07/2022,B5 Agency Nursing,A&E Nursing,Red Group Personnel Ltd,925CALD,9628.22,B5 Agency Nursing,HA3 5AB
Corporate Services,Central Operations Team CORP,29/07/2022,B5 Agency Nursing,Central Operations Team CORP,Red Group Personnel Ltd,925CALD,1200.75,B5 Agency Nursing,HA3 5AB
Surgery & Anaesthetics,General Surgery,29/07/2022,B5 Agency Nursing,Endoscopy,Red Group Personnel Ltd,925CALD,1364.31,B5 Agency Nursing,HA3 5AB
Medical Division,Acute Medical,29/07/2022,B5 Agency Nursing,General Medicine,Red Group Personnel Ltd,925CALD,11213.16,B5 Agency Nursing,HA3 5AB
Surgery & Anaesthetics,General Surgery,29/07/2022,B5 Agency Nursing,General Surgery,Red Group Personnel Ltd,925CALD,1590.12,B5 Agency Nursing,HA3 5AB
Medical Division,Acute Medical,29/07/2022,B5 Agency Nursing,Geriatric Medicine,Red Group Personnel Ltd,925CALD,4824.54,B5 Agency Nursing,HA3 5AB
Medical Division,Integrated Medical Specialities,29/07/2022,B5 Agency Nursing,Ims Stroke / Rehabilitation,Red Group Personnel Ltd,925CALD,3042.5,B5 Agency Nursing,HA3 5AB
Surgery & Anaesthetics,Operating Services,29/07/2022,B5 Agency Nursing,Operating Services,Red Group Personnel Ltd,925CALD,4506.04,B5 Agency Nursing,HA3 5AB
Medical Division,Medical Specialities,29/07/2022,B5 Agency Nursing,Respiratory,Red Group Personnel Ltd,925CALD,7079.16,B5 Agency Nursing,HA3 5AB
Families & Specialist Services,Pathology,29/07/2022,Laboratory Reagents,Path General,Roche Diagnostics Ltd,6565042653,"-133,430.30 ",Managed Service Contract 21-22 YE Reconcilliation Credit,RH15 9RY
Families & Specialist Services,Pathology,29/07/2022,Laboratory Bottles And Containers,Path General,Roche Diagnostics Ltd,6571590656,"168,815.40 ",Managed Service Contract for 2022/23 for INR  Glucose  Ketones and molecular POCT for CHFT,RH15 9RY
Families & Specialist Services,Pathology,29/07/2022,Laboratory Test Kits,Cell Path,Roche Diagnostics Ltd,6571590658,"95,660.40 ",Managed service contract for Immunohistochemistry.,RH15 9RY
Balance Sheet,L2 Current Assets,29/07/2022,Finished Processed Goods,Stock & Work In Progress,Roche Products Ltd,1322242341,"33,594.67 ",Pharmaceutical purchase,AL7 1TW
Balance Sheet,Fixed Assets,01/07/2022,Additions - Assets Under Construction,Capital (Corporate),Select Medical Ltd,141415,"43,200.00 ",Purchase of 100 ex rental Enterprise 5000 beds  to include service and clean prior to delivery.  All beds to be between 4 and 6 years old.,BB1 5NA
Families & Specialist Services,Radiology,15/07/2022,Med Surg Eqpt Leasing,Mri,Sg Radiology & Associates Ltd,SI-2711,"42,240.00 ",lease of two SG mobile MRI units for CRH. April 22 and May 22,WF1 3QQ
Families & Specialist Services,Pathology,15/07/2022,Laboratory Chemicals,Path Chemical Pathology,Siemens Healthcare Diagnostics Ltd,114629327,"156,629.44 ",Biochemistry - Managed Service Contract ,GU16 8QD
Balance Sheet,Fixed Assets,29/07/2022,Additions - Assets Under Construction,Capital (His),Softcat Plc,INVUK479410,"28,675.92 ",Lenovo Notebook ThinkPad L14 Intel Gen2,SL7 1TB
Community Division,Community Therapies,15/07/2022,Patients Appliances : Purchase,Patient Appliances,Taycare Medical Ltd,21308,"27,176.69 ",supply of specialist orthotic products,LS12 6LL
Community Division,Community Therapies,29/07/2022,Patients Appliances : Purchase,Patient Appliances,Taycare Medical Ltd,21363,"35,726.46 ",supply of specialist orthotic products,LS12 6LL
Recharges,Recharges,15/07/2022,Healthcare From NHS Trusts,Recharges,The Leeds Teaching Hospitals NHS Trust,1410190728,"372,387.67 ",2022 / 23  West Yorkshire Association of Acute Trusts contribution agreed by the Chief Executives,LS9 7TF
Balance Sheet,Fixed Assets,22/07/2022,Additions - Assets Under Construction,Capital (Estates),The Together Group Construction Ltd,2853,"136,334.16 ",CHILD DEVELOPMENT UNIT - REFURBISHMENT OF THE CLOCK HOUSE TO CREATE A CHILD DEVELOPMENT UNIT - AS PER CONTRACT ,LS22 5DZ
Balance Sheet,Fixed Assets,22/07/2022,Additions - Assets Under Construction,Capital (Pmu),Thermo Electron Manufacturing Ltd,9112163622,"32,667.96 ",Thermo Scientific Ultimate 3000 HPLC System,HP2 7GE
Balance Sheet,Fixed Assets,01/07/2022,Additions - Assets Under Construction,CAPITAL (Reconfig CRH),Turner & Townsend Project Management Ltd,PRIV00004929,"155,520.00 ",OBC PROJECT MANAGEMENT,LS18 4GH
Balance Sheet,Fixed Assets,22/07/2022,Additions - Assets Under Construction,CAPITAL (Reconfig HRI),Turner & Townsend Project Management Ltd,PRIV00003408,"39,370.50 ",Emergency Department DEVELOPMENT - PROJECT MANANGMENT  COST ADVISOR / QUANTITY SURVEYOR & NEC3 SUPERVISOR SERVICES FEE FOR MANAGING THE DEVELOPMENT OF THE NEW EMERGENCY DEPARTMENT REF C67113 - MANAGEMENT CONSULTANCY PARTNER ,LS18 4GH
Balance Sheet,L2 Current Assets,01/07/2022,Other Debtors < One Year,Other Debtors,Tuskerdirect Ltd,60741,"144,605.78 ",Salary Sacrifice cars,WD18 8YF
Balance Sheet,L2 Current Assets,29/07/2022,Other Debtors < One Year,Other Debtors,Tuskerdirect Ltd,61893,"116,494.27 ",Salary Sacrifice cars,WD18 8YF
Medical Division,Integrated Medical Specialities,29/07/2022,Computer Software / License  Fees,Medical Oncology,Varian Medical Systems Uk Ltd,602211653,"38,817.00 ",ARIA OIS for Medical Oncology license 1/10/2022 - 30/9/2023,RH10 9RG
Health Informatics,Corporate And Operations,22/07/2022,Data Lines,It Support,Virgin Media Business Ltd,926098-154,"310,908.47 ",VMB Yearly Account 926098 for HSCN Lines (various lines). (this was the previous COIN Account). Effective from 1st April 2022,BD4 8PW
Health Informatics,Corporate And Operations,29/07/2022,Data Lines,It Support,Virgin Media Business Ltd,926098-157,"54,956.94 ",VMB Yearly Account 926098 for HSCN Lines (various lines). (this was the previous COIN Account). Effective from 1st April 2022,BD4 8PW
Recharges,Recharges,22/07/2022,Mobile Phones,Recharges,Vodafone Ltd,101474988,"25,511.31 ",Corporate mobile phone calls,RG14 5FF
Medical Division,Emergency Medicine,01/07/2022,B5 Agency Nursing,A&E Nursing,Your Nurse Ltd,YNLX28,17290.03,B5 Agency Nursing,EC3V 0EH
Medical Division,Medical Specialities,01/07/2022,B5 Agency Nursing,Cardiology,Your Nurse Ltd,YNLX28,1782.7,B5 Agency Nursing,EC3V 0EH
Corporate Services,Central Operations Team CORP,01/07/2022,B5 Agency Nursing,Central Operations Team CORP,Your Nurse Ltd,YNLX28,4238.9,B5 Agency Nursing,EC3V 0EH
Surgery & Anaesthetics,Head & Neck,01/07/2022,B5 Agency Nursing,Ent,Your Nurse Ltd,YNLX28,2539.02,B5 Agency Nursing,EC3V 0EH
Medical Division,Medical Specialities,01/07/2022,B5 Agency Nursing,Gastroenterology,Your Nurse Ltd,YNLX28,4844.76,B5 Agency Nursing,EC3V 0EH
Medical Division,Acute Medical,01/07/2022,B5 Agency Nursing,General Medicine,Your Nurse Ltd,YNLX28,9064.61,B5 Agency Nursing,EC3V 0EH
Surgery & Anaesthetics,General Surgery,01/07/2022,B5 Agency Nursing,General Surgery,Your Nurse Ltd,YNLX28,3105.49,B5 Agency Nursing,EC3V 0EH
Medical Division,Acute Medical,01/07/2022,B5 Agency Nursing,Geriatric Medicine,Your Nurse Ltd,YNLX28,12632.31,B5 Agency Nursing,EC3V 0EH
Families & Specialist Services,Womens,01/07/2022,B5 Agency Nursing,Gynaecology,Your Nurse Ltd,YNLX28,743.04,B5 Agency Nursing,EC3V 0EH
Medical Division,Integrated Medical Specialities,01/07/2022,B5 Agency Nursing,Ims Stroke / Rehabilitation,Your Nurse Ltd,YNLX28,625.81,B5 Agency Nursing,EC3V 0EH
Medical Division,Integrated Medical Specialities,01/07/2022,B5 Agency Nursing,Medical Oncology,Your Nurse Ltd,YNLX28,815.96,B5 Agency Nursing,EC3V 0EH
Surgery & Anaesthetics,Operating Services,01/07/2022,B5 Agency Nursing,Operating Services,Your Nurse Ltd,YNLX28,2144.36,B5 Agency Nursing,EC3V 0EH
Medical Division,Medical Specialities,01/07/2022,B5 Agency Nursing,Respiratory,Your Nurse Ltd,YNLX28,5550.75,B5 Agency Nursing,EC3V 0EH
Surgery & Anaesthetics,Orthopaedics,01/07/2022,B5 Agency Nursing,Trauma & Orthopaedics,Your Nurse Ltd,YNLX28,1829.27,B5 Agency Nursing,EC3V 0EH
Medical Division,Emergency Medicine,15/07/2022,B5 Agency Nursing,A&E Nursing,Your Nurse Ltd,YNLX29,15295.56,B5 Agency Nursing,EC3V 0EH
Medical Division,Medical Specialities,15/07/2022,B5 Agency Nursing,Cardiology,Your Nurse Ltd,YNLX29,1746.99,B5 Agency Nursing,EC3V 0EH
Corporate Services,Central Operations Team CORP,15/07/2022,B5 Agency Nursing,Central Operations Team CORP,Your Nurse Ltd,YNLX29,1209.33,B5 Agency Nursing,EC3V 0EH
Surgery & Anaesthetics,Critical Care,15/07/2022,B5 Agency Nursing,Critical Care,Your Nurse Ltd,YNLX29,733.5,B5 Agency Nursing,EC3V 0EH
Surgery & Anaesthetics,Head & Neck,15/07/2022,B5 Agency Nursing,Ent,Your Nurse Ltd,YNLX29,601.27,B5 Agency Nursing,EC3V 0EH
Medical Division,Medical Specialities,15/07/2022,B5 Agency Nursing,Gastroenterology,Your Nurse Ltd,YNLX29,4293.96,B5 Agency Nursing,EC3V 0EH
Medical Division,Acute Medical,15/07/2022,B5 Agency Nursing,General Medicine,Your Nurse Ltd,YNLX29,13500.8,B5 Agency Nursing,EC3V 0EH
Surgery & Anaesthetics,General Surgery,15/07/2022,B5 Agency Nursing,General Surgery,Your Nurse Ltd,YNLX29,3689.96,B5 Agency Nursing,EC3V 0EH
Medical Division,Acute Medical,15/07/2022,B5 Agency Nursing,Geriatric Medicine,Your Nurse Ltd,YNLX29,10121.25,B5 Agency Nursing,EC3V 0EH
Families & Specialist Services,Womens,15/07/2022,B5 Agency Nursing,Gynaecology,Your Nurse Ltd,YNLX29,2895.2,B5 Agency Nursing,EC3V 0EH
Medical Division,Integrated Medical Specialities,15/07/2022,B5 Agency Nursing,Ims Stroke / Rehabilitation,Your Nurse Ltd,YNLX29,1790.47,B5 Agency Nursing,EC3V 0EH
Medical Division,Integrated Medical Specialities,15/07/2022,B5 Agency Nursing,Medical Oncology,Your Nurse Ltd,YNLX29,577.15,B5 Agency Nursing,EC3V 0EH
Surgery & Anaesthetics,Operating Services,15/07/2022,B5 Agency Nursing,Operating Services,Your Nurse Ltd,YNLX29,4824.81,B5 Agency Nursing,EC3V 0EH
Medical Division,Medical Specialities,15/07/2022,B5 Agency Nursing,Respiratory,Your Nurse Ltd,YNLX29,4758.37,B5 Agency Nursing,EC3V 0EH
Surgery & Anaesthetics,Orthopaedics,15/07/2022,B5 Agency Nursing,Trauma & Orthopaedics,Your Nurse Ltd,YNLX29,2503.31,B5 Agency Nursing,EC3V 0EH
Medical Division,Emergency Medicine,22/07/2022,B5 Agency Nursing,A&E Nursing,Your Nurse Ltd,YNLX30,"12,875.34 ",B5 Agency Nursing,EC3V 0EH
Medical Division,Medical Specialities,22/07/2022,B5 Agency Nursing,Cardiology,Your Nurse Ltd,YNLX30,"2,418.87 ",B5 Agency Nursing,EC3V 0EH
Corporate Services,Central Operations Team CORP,22/07/2022,B5 Agency Nursing,Central Operations Team CORP,Your Nurse Ltd,YNLX30,"1,178.42 ",B5 Agency Nursing,EC3V 0EH
Surgery & Anaesthetics,Head & Neck,22/07/2022,B5 Agency Nursing,Ent,Your Nurse Ltd,YNLX30,601.27 ,B5 Agency Nursing,EC3V 0EH
Medical Division,Medical Specialities,22/07/2022,B5 Agency Nursing,Gastroenterology,Your Nurse Ltd,YNLX30,"5,295.27 ",B5 Agency Nursing,EC3V 0EH
Medical Division,Acute Medical,22/07/2022,B5 Agency Nursing,General Medicine,Your Nurse Ltd,YNLX30,"10,062.99 ",B5 Agency Nursing,EC3V 0EH
Surgery & Anaesthetics,General Surgery,22/07/2022,B5 Agency Nursing,General Surgery,Your Nurse Ltd,YNLX30,"1,925.72 ",B5 Agency Nursing,EC3V 0EH
Medical Division,Acute Medical,22/07/2022,B5 Agency Nursing,Geriatric Medicine,Your Nurse Ltd,YNLX30,"12,302.87 ",B5 Agency Nursing,EC3V 0EH
Families & Specialist Services,Womens,22/07/2022,B5 Agency Nursing,Gynaecology,Your Nurse Ltd,YNLX30,"1,421.92 ",B5 Agency Nursing,EC3V 0EH
Medical Division,Integrated Medical Specialities,22/07/2022,B5 Agency Nursing,Ims Stroke / Rehabilitation,Your Nurse Ltd,YNLX30,"1,731.45 ",B5 Agency Nursing,EC3V 0EH
Medical Division,Integrated Medical Specialities,22/07/2022,B5 Agency Nursing,Medical Oncology,Your Nurse Ltd,YNLX30,"2,977.29 ",B5 Agency Nursing,EC3V 0EH
Surgery & Anaesthetics,Operating Services,22/07/2022,B5 Agency Nursing,Operating Services,Your Nurse Ltd,YNLX30,"4,824.81 ",B5 Agency Nursing,EC3V 0EH
Medical Division,Medical Specialities,22/07/2022,B5 Agency Nursing,Respiratory,Your Nurse Ltd,YNLX30,584.92 ,B5 Agency Nursing,EC3V 0EH
Surgery & Anaesthetics,Orthopaedics,22/07/2022,B5 Agency Nursing,Trauma & Orthopaedics,Your Nurse Ltd,YNLX30,"6,176.05 ",B5 Agency Nursing,EC3V 0EH
Medical Division,Emergency Medicine,22/07/2022,B5 Agency Nursing,A&E Nursing,Your Nurse Ltd,YNLX31,"11,780.97 ",B5 Agency Nursing,EC3V 0EH
Medical Division,Medical Specialities,22/07/2022,B5 Agency Nursing,Cardiology,Your Nurse Ltd,YNLX31,"1,145.99 ",B5 Agency Nursing,EC3V 0EH
Corporate Services,Central Operations Team CORP,22/07/2022,B5 Agency Nursing,Central Operations Team CORP,Your Nurse Ltd,YNLX31,"3,091.65 ",B5 Agency Nursing,EC3V 0EH
Surgery & Anaesthetics,Critical Care,22/07/2022,B5 Agency Nursing,Critical Care,Your Nurse Ltd,YNLX31,706.19 ,B5 Agency Nursing,EC3V 0EH
Surgery & Anaesthetics,Head & Neck,22/07/2022,B5 Agency Nursing,Ent,Your Nurse Ltd,YNLX31,"1,877.92 ",B5 Agency Nursing,EC3V 0EH
Medical Division,Medical Specialities,22/07/2022,B5 Agency Nursing,Gastroenterology,Your Nurse Ltd,YNLX31,"6,164.66 ",B5 Agency Nursing,EC3V 0EH
Medical Division,Acute Medical,22/07/2022,B5 Agency Nursing,General Medicine,Your Nurse Ltd,YNLX31,"4,895.03 ",B5 Agency Nursing,EC3V 0EH
Surgery & Anaesthetics,General Surgery,22/07/2022,B5 Agency Nursing,General Surgery,Your Nurse Ltd,YNLX31,"4,872.71 ",B5 Agency Nursing,EC3V 0EH
Medical Division,Acute Medical,22/07/2022,B5 Agency Nursing,Geriatric Medicine,Your Nurse Ltd,YNLX31,"13,330.53 ",B5 Agency Nursing,EC3V 0EH
Families & Specialist Services,Womens,22/07/2022,B5 Agency Nursing,Gynaecology,Your Nurse Ltd,YNLX31,"2,173.19 ",B5 Agency Nursing,EC3V 0EH
Medical Division,Integrated Medical Specialities,22/07/2022,B5 Agency Nursing,Ims Stroke / Rehabilitation,Your Nurse Ltd,YNLX31,"5,360.26 ",B5 Agency Nursing,EC3V 0EH
Medical Division,Integrated Medical Specialities,22/07/2022,B5 Agency Nursing,Medical Oncology,Your Nurse Ltd,YNLX31,"2,317.98 ",B5 Agency Nursing,EC3V 0EH
Surgery & Anaesthetics,Operating Services,22/07/2022,B5 Agency Nursing,Operating Services,Your Nurse Ltd,YNLX31,"5,296.70 ",B5 Agency Nursing,EC3V 0EH
Medical Division,Medical Specialities,22/07/2022,B5 Agency Nursing,Respiratory,Your Nurse Ltd,YNLX31,"3,517.37 ",B5 Agency Nursing,EC3V 0EH
Surgery & Anaesthetics,Orthopaedics,22/07/2022,B5 Agency Nursing,Trauma & Orthopaedics,Your Nurse Ltd,YNLX31,"2,433.01 ",B5 Agency Nursing,EC3V 0EH
Medical Division,Emergency Medicine,29/07/2022,B5 Agency Nursing,A&E Nursing,Your Nurse Ltd,YNLX32,19692.8,B5 Agency Nursing,EC3V 0EH
Medical Division,Medical Specialities,29/07/2022,B5 Agency Nursing,Cardiology,Your Nurse Ltd,YNLX32,577.15,B5 Agency Nursing,EC3V 0EH
Corporate Services,Central Operations Team CORP,29/07/2022,B5 Agency Nursing,Central Operations Team CORP,Your Nurse Ltd,YNLX32,4871.62,B5 Agency Nursing,EC3V 0EH
Surgery & Anaesthetics,Critical Care,29/07/2022,B5 Agency Nursing,Critical Care,Your Nurse Ltd,YNLX32,706.19,B5 Agency Nursing,EC3V 0EH
Surgery & Anaesthetics,Head & Neck,29/07/2022,B5 Agency Nursing,Ent,Your Nurse Ltd,YNLX32,1239.17,B5 Agency Nursing,EC3V 0EH
Medical Division,Medical Specialities,29/07/2022,B5 Agency Nursing,Gastroenterology,Your Nurse Ltd,YNLX32,7659.95,B5 Agency Nursing,EC3V 0EH
Medical Division,Acute Medical,29/07/2022,B5 Agency Nursing,General Medicine,Your Nurse Ltd,YNLX32,5875.61,B5 Agency Nursing,EC3V 0EH
Surgery & Anaesthetics,General Surgery,29/07/2022,B5 Agency Nursing,General Surgery,Your Nurse Ltd,YNLX32,5630.88,B5 Agency Nursing,EC3V 0EH
Medical Division,Acute Medical,29/07/2022,B5 Agency Nursing,Geriatric Medicine,Your Nurse Ltd,YNLX32,12063.82,B5 Agency Nursing,EC3V 0EH
Families & Specialist Services,Womens,29/07/2022,B5 Agency Nursing,Gynaecology,Your Nurse Ltd,YNLX32,1465.05,B5 Agency Nursing,EC3V 0EH
Medical Division,Integrated Medical Specialities,29/07/2022,B5 Agency Nursing,Ims Stroke / Rehabilitation,Your Nurse Ltd,YNLX32,3124.77,B5 Agency Nursing,EC3V 0EH
Medical Division,Integrated Medical Specialities,29/07/2022,B5 Agency Nursing,Medical Oncology,Your Nurse Ltd,YNLX32,2983.27,B5 Agency Nursing,EC3V 0EH
Surgery & Anaesthetics,Operating Services,29/07/2022,B5 Agency Nursing,Operating Services,Your Nurse Ltd,YNLX32,6001.52,B5 Agency Nursing,EC3V 0EH
Medical Division,Medical Specialities,29/07/2022,B5 Agency Nursing,Respiratory,Your Nurse Ltd,YNLX32,6778.05,B5 Agency Nursing,EC3V 0EH
Surgery & Anaesthetics,Orthopaedics,29/07/2022,B5 Agency Nursing,Trauma & Orthopaedics,Your Nurse Ltd,YNLX32,1864.85,B5 Agency Nursing,EC3V 0EH
